Cogmind - Beta 9.6 @@@ ROGUE MODE // 2020.04.22 @ 17:07:36 Player: rekpake Result: Destroyed by D-53 Grenadier with Mini Grenade Launcher Performance ------------- Evolutions (0) 0 Regions Visited (4) 800 Robots Destroyed (40) 200 Value Destroyed (788) 788 Prototype IDs (3) 60 Alien Tech Used (0) 0 Bonus (381) 381 TOTAL SCORE: 2229 Bonus ------- Follower Combat Kills 81 Aligned with FarCom 300 Cogmind --------- Core Integrity 0/250 Matter 276/300 Energy 117/250 System Corruption 0% Temperature Cool (1) Movement Walking (150) Ox1 Location -9/Mines Parts ------- > --- POWER (1) -------- Ion Engine > --- PROPULSION (2) --- Improved Aluminum Leg > --- UTILITY (2) ------ Medium Storage Unit Medium Storage Unit > --- WEAPON (2) ------- (None) > --- INVENTORY (12) --- Light Ion Engine Light Nuclear Core Terrain Scanner 0b10 Alert Chip Hacking Suite Tractor Beam Light EM Pulse Cannon Light EM Pulse Cannon Grenade Launcher Grenade Launcher Mining Laser Peak State ------------ > --- POWER ------------ Ion Engine > --- PROPULSION ------- Improved Aluminum Leg Improved Aluminum Leg > --- UTILITY ---------- Small Storage Unit Medium Storage Unit > --- WEAPON ----------- Light EM Pulse Cannon Light EM Pulse Cannon > --- INVENTORY -------- Light Ion Engine Improved Aluminum Leg Improved Aluminum Leg Terrain Scanner Light EM Pulse Cannon Light Assault Rifle Light Assault Rifle Grenade Launcher Grenade Launcher [Rating: 12] Favorites ----------- Power Ion Engine Engine Ion Engine Propulsion Improved Aluminum Leg Treads Light Treads Leg Improved Aluminum Leg Utility Medium Storage Unit Storage Medium Storage Unit Processor Transport Network Coupler Weapon Light Assault Rifle Energy Gun Small Laser Energy Cannon Light EM Pulse Cannon Ballistic Gun Light Assault Rifle Launcher Grenade Launcher Special Weapon Mining Laser Build | -11 -10 -10 -10 -9 ------- Run | Scr Mat Min Exi Min Slots Evolved . | . . . . . Power . | . . . . . Propulsion . | . . . . . Utility . | . . . . . Weapon . | . . . . . Parts Attached 51 | 8 25 8 . 10 Power 3 | 1 2 . . . Engine 3 | 1 2 . . . Core . | . . . . . Reactor . | . . . . . Propulsion 10 | 4 3 1 . 2 Treads 2 | 2 . . . . Leg 8 | 2 3 1 . 2 Wheel . | . . . . . Hover . | . . . . . Flight . | . . . . . Utility 7 | 1 6 . . . Device . | . . . . . Storage 6 | 1 5 . . . Processor 1 | . 1 . . . Hackware . | . . . . . Protection . | . . . . . Artifact . | . . . . . Weapon 31 | 2 14 7 . 8 Energy Gun 6 | 2 4 . . . Energy Cannon 7 | . 2 2 . 3 Ballistic Gun 9 | . 5 2 . 2 Ballistic Cannon . | . . . . . Launcher 8 | . 3 2 . 3 Special Weapon 1 | . . 1 . . Impact Weapon . | . . . . . Slashing Weapon . | . . . . . Piercing Weapon . | . . . . . Special Melee Weapon . | . . . . . Unidentified Prototypes . | . . . . . Parts Lost 9 | . 3 2 . 4 Power . | . . . . . Propulsion 3 | . . 1 . 2 Utility . | . . . . . Weapon 6 | . 3 1 . 2 Highest Loss Streak 4 | . 2 1 . 4 Average Slot Usage (%) 98 | . 98 97 100 99 Engine 13 | . 13 14 14 14 Leg 27 | . 27 26 28 28 Storage 27 | . 25 28 28 28 Energy Gun 6 | . 14 . . . Energy Cannon 6 | . . 7 14 12 Ballistic Gun 12 | . 11 18 . 13 Special Weapon 2 | . . 1 14 . Naked Turns . | . . . . . Heaviest Build 26 | 10 25 26 26 26 Greatest Support 40 | 40 26 26 26 26 Greatest Overweight (x) 1 | 1 1 1 . 1 Average Overweight (x) . | . . . . . Largest Inventory Capacity 14 | 6 14 12 12 12 Average Capacity 10 | 4 9 12 12 12 Most Carried 12 | 4 10 10 11 12 Average Carried 9 | 1 9 9 10 11 Final Capacity 12 | 6 12 12 12 12 Final Carried 11 | 4 10 10 11 11 Class Distribution -------------------- 100% | Mutant Dominant Class ---------------- Mutant | -10/Materials Mutant | -10/Mines Mutant | -10/Exiles Mutant | -9/Mines Resources | -11 -10 -10 -10 -9 ----------- Run | Scr Mat Min Exi Min Matter Collected 883 | 267 345 156 . 115 Remotely . | . . . . . Salvage Created 891 | . 519 83 . 289 Parts 68 | . 44 7 . 17 Haulers Intercepted 2 | . 2 . . . Recyclers Shooed 2 | . 2 . . . Parts Field Recycled . | . . . . . Retrieved Matter . | . . . . . Parts Self-Destructed . | . . . . . Prevented . | . . . . . Kills | -11 -10 -10 -10 -9 ------- Run | Scr Mat Min Exi Min Combat Hostiles Destroyed 31 | . 16 6 . 9 Guns 9 | . 9 . . . Cannons 4 | . . . . 4 AOE 17 | . 7 6 . 4 Classes Destroyed 8 | . 6 . . 2 Hauler 2 | . 2 . . . Recycler 1 | . 1 . . . Operator 3 | . 3 . . . Watcher 3 | . 3 . . . Swarmer 18 | . 12 3 . 3 Grunt 10 | . 4 3 . 3 Brawler 1 | . . . . 1 Sentry 2 | . . . . 2 Best Kill Streak 4 | . 4 4 . 3 Combat Bots Only 4 | . 4 4 . 3 Max Kills in Single Turn 3 | . 2 2 . 3 Gunslinging . | . . . . . Exploded 3 | . 2 2 . 3 Melee . | . . . . . Uniques/NPCs Destroyed . | . . . . . Combat | -11 -10 -10 -10 -9 -------- Run | Scr Mat Min Exi Min Damage Taken 1394 | . 579 190 . 625 Core 252 | . 126 45 . 81 Absorbed by Shields . | . . . . . Core Remaining (%) 100 | 100 . . . . Volleys Fired 87 | . 61 9 . 17 Largest 2 | . 2 2 . 2 Hottest 112 | . 112 100 . 112 Shots Fired 167 | . 117 16 . 34 Gun 126 | . 106 7 . 13 Cannon 24 | . 4 2 . 18 Launcher 16 | . 7 6 . 3 Special 1 | . . 1 . . Kinetic 82 | . 62 7 . 13 Thermal 30 | . 29 1 . . Explosive 16 | . 7 6 . 3 Electromagnetic 39 | . 19 2 . 18 Robot Hit Streak 16 | . 11 8 . 16 Robot Miss Streak 6 | . 6 3 . 3 Penetration Max . | . . . . . Secondary Targets 1 | . 1 . . . Max Gunslinging Chain 1 | . 1 . . . Shots Hit Robots 100 | . 64 11 . 25 Core Hits 62 | . 38 13 . 11 Critical Hits . | . . . . . Critical Kills . | . . . . . Critical Parts Destroyed . | . . . . . Melee Attacks . | . . . . . Impact . | . . . . . Slashing . | . . . . . Piercing . | . . . . . Sneak Attacks . | . . . . . Combat Hostiles . | . . . . . Follow-up Attacks . | . . . . . Damage Inflicted 2360 | . 1205 590 . 565 Guns 690 | . 608 33 . 49 Cannons 424 | . 48 48 . 328 Explosions 1246 | . 549 509 . 188 Melee . | . . . . . Ramming . | . . . . . Kinetic 299 | . 217 33 . 49 Thermal 228 | . 228 . . . Explosive 1226 | . 529 509 . 188 Electromagnetic 607 | . 231 48 . 328 Impact . | . . . . . Slashing . | . . . . . Piercing . | . . . . . Highest Corruption . | . . . . . Average Corruption . | . . . . . Corruption Purged . | . . . . . Overload Shots . | . . . . . Overflow Damage 28 | . 17 11 . . Projectiles 3 | . . 3 . . Explosions 25 | . 17 8 . . Melee . | . . . . . Knockbacks . | . . . . . Impact . | . . . . . Kinetic . | . . . . . Secondary . | . . . . . Self-Inflicted Damage 53 | . 49 1 . 3 Shots 4 | . 2 1 . 1 Rammed . | . . . . . Targets Rammed . | . . . . . Kicked . | . . . . . Crushed . | . . . . . Highest Temperature 176 | . 108 61 . 176 Average Temperature 41 | . 27 18 . 73 Received Heat Transfer 294 | . 114 69 . 111 Siege Activations . | . . . . . Robots Corrupted 1 | . . . . 1 Combat Hostiles 1 | . . . . 1 Parts Fried 1 | . . . . 1 Impact Corruptions . | . . . . . Robots Melted . | . . . . . Combat Hostiles . | . . . . . Parts Melted 1 | . 1 . . . Heat Transferred 525 | . 525 . . . Parts Sabotaged . | . . . . . Parts Stolen . | . . . . . Parts Stripped . | . . . . . Power Chain Reactions 1 | . 1 . . . Missiles Intercepted . | . . . . . Alert | -11 -10 -10 -10 -9 ------- Run | Scr Mat Min Exi Min Peak Influence 199 | . 190 142 . 199 Average Influence 68 | . 66 77 . 73 Maximum Alert Level . | . . . . . Low Security (%) 100 | 100 100 100 . 100 Level 1 . | . . . . . Level 2 . | . . . . . Level 3 . | . . . . . Level 4 . | . . . . . Level 5 . | . . . . . High Security . | . . . . . Max Security . | . . . . . Squads Dispatched 5 | . 5 . . . Investigation 2 | . 2 . . . Extermination . | . . . . . Reinforcement 3 | . 3 . . . Assault . | . . . . . Garrison . | . . . . . Intercept . | . . . . . Construction Impeded . | . . . . . Haulers Reinforced . | . . . . . Stealth | -11 -10 -10 -10 -9 --------- Run | Scr Mat Min Exi Min Distress Signals . | . . . . . Communications Jammed . | . . . . . Distress Signals . | . . . . . Times Spotted 47 | . 28 7 . 12 Peak Tracking Total 5 | . 4 5 . 3 Tactical Retreats 3 | . 2 1 . . Traps | -11 -10 -10 -10 -9 ------- Run | Scr Mat Min Exi Min Traps Triggered 2 | . 2 . . . Indirectly . | . . . . . Trap Hack Attempts . | . . . . . Triggered . | . . . . . Disarmed . | . . . . . Reprogrammed . | . . . . . Reused . | . . . . . Traps Extracted . | . . . . . Installed . | . . . . . Triggered . | . . . . . Machines | -11 -10 -10 -10 -9 ---------- Run | Scr Mat Min Exi Min Machines Disabled 2 | . . . . 2 Max in Single Turn 1 | . . . . 1 Machines Sabotaged . | . . . . . Garrisons Compromised . | . . . . . Overloaded Fab Kills . | . . . . . Fab Network Shutdowns . | . . . . . Hacking | -11 -10 -10 -10 -9 --------- Run | Scr Mat Min Exi Min Machines Accessed 7 | . 6 . 1 . Terminals 5 | . 5 . . . Fabricators . | . . . . . Repair Stations 1 | . 1 . . . Recycling Units . | . . . . . Scanalyzers . | . . . . . Garrison Access . | . . . . . Total Hacks 22 | . 21 . 1 . Successful 10 | . 9 . 1 . Failed 12 | . 12 . . . Catastrophic 2 | . 2 . . . Database Lockouts . | . . . . . Manual 12 | . 11 . 1 . Terminals 18 | . 18 . . . Fabricators . | . . . . . Repair Stations 3 | . 3 . . . Recycling Units . | . . . . . Scanalyzers . | . . . . . Garrison Access . | . . . . . Terminal Hacks 8 | . 7 . 1 . Record 1 | . . . 1 . Prototype ID Bank 2 | . 2 . . . Branch Access Points 1 | . 1 . . . Unreport Threat 1 | . 1 . . . Investigation Status 1 | . 1 . . . Recall Investigation 1 | . 1 . . . Hauler Manifests 1 | . 1 . . . Fabricator Hacks . | . . . . . Repair Station Hacks 2 | . 2 . . . Scan Component 1 | . 1 . . . Repair 1 | . 1 . . . Recycling Unit Hacks . | . . . . . Scanalyzer . | . . . . . Garrison Access Hacks . | . . . . . Unauthorized Hacks . | . . . . . Terminals . | . . . . . Fabricators . | . . . . . Repair Stations . | . . . . . Recycling Units . | . . . . . Scanalyzers . | . . . . . Garrison Access . | . . . . . Data Cores Recovered . | . . . . . Used . | . . . . . Hacking Detections 5 | . 5 . . . Full Trace Events 1 | . 1 . . . Feedback Events . | . . . . . Feedback Blocked . | . . . . . Robot Schematics Acquired . | . . . . . Robots Built . | . . . . . Matter . | . . . . . Time . | . . . . . Total Robot Build Rating . | . . . . . Part Schematics Acquired . | . . . . . Parts Built . | . . . . . Matter . | . . . . . Time . | . . . . . Total Part Build Rating . | . . . . . Parts Repaired 1 | . 1 . . . Time 26 | . 26 . . . Parts Recycled . | . . . . . Recycled Matter . | . . . . . Retrieved Matter . | . . . . . Retrieved Components . | . . . . . Parts Scanalyzed . | . . . . . Part Schematics Acquired . | . . . . . Parts Damaged . | . . . . . Bothacking | -11 -10 -10 -10 -9 ------------ Run | Scr Mat Min Exi Min Used RIF Installer . | . . . . . Robots Hacked . | . . . . . Non-combat . | . . . . . Combat . | . . . . . Robot Hacks Applied . | . . . . . Relay Couplers Released . | . . . . . Robots Rewired . | . . . . . Allies Hacked . | . . . . . Hacks Repelled . | . . . . . Allies | -11 -10 -10 -10 -9 -------- Run | Scr Mat Min Exi Min Total Allies 4 | . . 4 . . Largest Group 4 | . . 4 4 3 Highest-Rated Group 71 | . . 71 71 40 Highest-Rated Ally 31 | . . 31 31 16 Total Orders 1 | . . . . 1 GOTO 1 | . . . . 1 Ally Attacks 18 | . . 13 . 5 Total Damage 187 | . . 133 . 54 Kills 5 | . . 4 . 1 Allies Corrupted . | . . . . . Allies Melted . | . . . . . Intel | -11 -10 -10 -10 -9 ------- Run | Scr Mat Min Exi Min Robot Analysis Total . | . . . . . Derelict Logs Recovered 2 | . . 1 . 1 Drone Launches . | . . . . . Drone Recoveries . | . . . . . Exploration | -11 -10 -10 -10 -9 ------------- Run | Scr Mat Min Exi Min Turns Passed 2726 | 114 1070 773 333 436 Spaces Moved 1849 | 71 665 584 276 253 Core 4 | 4 . . . . Treads 8 | 8 . . . . Legs 1837 | 59 665 584 276 253 Wheels . | . . . . . Hover . | . . . . . Flight . | . . . . . Fastest Speed 50 | 50 120 120 120 120 Average Speed 122 | 121 120 123 120 128 Slowest Speed 160 | 160 150 150 120 150 Overloaded Moves . | . . . . . Propulsion Burnouts . | . . . . . Robots Hopped . | . . . . . Cave-ins Triggered . | . . . . . Exploration Rate (%) 59 | 5 95 99 44 54 Regions Visited 4 Branch Regions 3 Pre-discovered Areas 1 | . . 1 . . Known Exits Taken 1 | . 1 . . . Unknown Exits Taken 3 | 1 . 1 1 . Scrap Searched 2 | . . 2 . . Spaces Dug 1 | . . 1 . . Terrain Destroyed 130 | . 63 41 . 26 Melee . | . . . . . Projectile 1 | . . 1 . . AOE 129 | . 63 40 . 26 Actions | -11 -10 -10 -10 -9 --------- Run | Scr Mat Min Exi Min Total 2149 | 96 827 619 278 329 Wait 119 | 10 44 16 2 47 Move 1845 | 70 664 583 275 253 Hop . | . . . . . Pick Up 29 | 4 21 2 1 1 Fast Attach 13 | 8 4 . . 1 Attach 8 | . 4 3 . 1 Detach 4 | 2 1 1 . . Swap 30 | . 17 5 . 8 Drop 14 | 2 11 . . 1 Fire 87 | . 61 9 . 17 Melee . | . . . . . Ram . | . . . . . Kick . | . . . . . Crush . | . . . . . Escape Stasis . | . . . . . Rewire . | . . . . . Trap . | . . . . . Miscellaneous . | . . . . . Route ------- -11/Scrapyard -10/Materials (discovered 4 exits: [*Mat x3] / *Min) -10/Mines (discovered 3 exits: [*Mat x2] / *Exi) -10/Exiles -9/Mines History --------- Turn | Location | Event 18 | -11/Scrapyard | Discovered new exit (range 16) 115 | -11/Scrapyard | Entered Materials 288 | -10/Materials | Discovered new exit (range 12) 318 | -10/Materials | Build established: Mutant 523 | -10/Materials | Discovered new exit (range 7) 652 | -10/Materials | Discovered new exit (range 6) 760 | -10/Materials | Repaired Ion Engine 811 | -10/Materials | Identified exit to Mines 897 | -10/Materials | Core integrity fell below 50% 1081 | -10/Materials | Discovered new exit (range 14) 1185 | -10/Materials | Entered Mines 1334 | -10/Mines | Deemed a non-threat by the Exiles lab entrance 1335 | -10/Mines | Discovered new exit (range 5) 1512 | -10/Mines | Learned location of Zion (-7) 1532 | -10/Mines | Discovered new exit (range 11) 1562 | -10/Mines | Assisted by bots powering up and referring to "LRC-V3" 1648 | -10/Mines | Discovered new exit (range 14) 1851 | -10/Mines | Received a Mining Laser from a helpful Derelict 1958 | -10/Mines | Entered Exiles 1958 | -10/Exiles | Accompanied by 4 allies 1987 | -10/Exiles | Met 8R-AWN 2009 | -10/Exiles | Met EX-HEX 2041 | -10/Exiles | Met EX-BIN 2060 | -10/Exiles | Aligned with FarCom system 2062 | -10/Exiles | Given EX-Vault access code 2112 | -10/Exiles | Opened EX-Vault 2162 | -10/Exiles | Found Prototype Processor 2189 | -10/Exiles | Warned to stay clear of 0b10 Research branches 2275 | -10/Exiles | Discovered new exit (range 14) 2291 | -10/Exiles | Left Exiles lab with 0b10 Alert Chip 2291 | -10/Exiles | Entered Mines 2291 | -9/Mines | Accompanied by 3 allies 2605 | -9/Mines | Assembled infested the area 2618 | -9/Mines | Learned 2 Materials zone layouts 2696 | -9/Mines | Core integrity fell below 20% 2727 | -9/Mines | Destroyed by D-53 Grenadier with Mini Grenade Launcher Last Messages --------------- 02590_ B-36 Bruiser destroyed. 02592_ Acquired 6 matter. 02596_ K-01 Serf collects debris. 02605_ ALERT: Infestation in the mines, dispatching Demolisher response squad. 02618_ Acquired derelict log, extracted data. Data stored: Materials zone layouts (x2). 02695_ Y-45 Defender destroyed. 02695_ Machine disabled. 02702_ U-05 Engineer lays Concrete. 02713_ Y-45 Defender system terminally corrupted. 02713_ Heat Sink fried. 02717_ U-05 Engineer builds a Wall. 02718_ Lgt. Assault Rifle destroyed. 02718_ Lgt. EM Pulse Cannon destroyed. 02719_ The unstable cave ceiling collapses. 02719_ Acquired 37 matter. 02721_ Machine disabled. 02723_ Aluminum Leg destroyed. 02725_ Imp. Aluminum Leg destroyed. Map ----- +----------------------------------------------------+ | ????????????????????????????## | | ????????????????????????????? | | ?????????????????????????????# | | ?????????????????????????????# | | ?????????????????????????????# | | ?????????????????????????????# | | ?????????????????????????????# | | ?????????????????????????????# | | ??????????????????????? ####### | | ???????????????????????? | | ??????????????????????? ? | | ??????????????? ?????? #?????? | | ?????????????? ??### #?????? | | ?????????????? ##????? | | ????????????? % ? ## #?? | | ????????????? ? #?? | | ???????????? ### ? #? | | ????????#### ?? #? | | ??###??## # ???# #? | | ### #### d #??## #?? | | " #### #??? | | ! #???? | | ! = d #????? | | ! ## #????? | | [ # %### #????? | | @ # #???? ##????? | | # ## #????????????? | | # ##### #????#######?? | | ## ##???# #?#### # #?? | | ?## #????#*=### ?## | | ??### ##????#=%##" ### | | ????#####?????# /##" % ## | | ??????????????# ##" #?# | | ??????????????# ##" #?# | | ??????????????# ##" ### | | ??????????????# ##""" " "### | | ??????????????# #### ## "### | | ??????????????# ####??# | | ??????????????# ##?### ### | | ??????????????# [*[##??# #?## | | ??????????????## %%=%##?# #??# | | ???????????????## ![!==### #??# | | ????????????????## ==%= #??? | | ?????????????????## ####??? | | ??????????????????### ##?????? | | ????????????????????####??????? | | ??????????????????????????????? | | | | | | | +----------------------------------------------------+ Best States ------------- Heat Dissipation 25 Energy Generation 10 Energy Capacity 250 Matter Stores 300 Matter Capacity 300 Sight Range 16 Terrain Scan Density 10 Evasion (%) 40 Recoil Reduction 2 Item Schematics ----------------- None Robot Schematics ------------------ None Fabricated ------------ Nothing Alien Tech Used ----------------- None Achievements -------------- None Challenges ------------ None Game ------ Seed GodGreatMegatreads Manual? 0 Play Time 00:36:52 Cumulative 19.2 hours Start 2020.04.22 @ 15:15:44 End 2020.04.22 @ 17:07:36 Sessions 1 Manual Loads 0 Difficulty Rogue Special Mode None Game No. 15 Rogue 15 Adventurer 0 Explorer 0 Win Type - Total 0 Types 0/0/0/0/0/0/0 Lore% 19 Gallery% 22 Achievement% 21 Wizard Run 0 Options --------- ASCII 0 Keyboard 1 Movement Vi Keybinds 0 Fullscreen 1 Font 24/Terminus Map View 76x50 Tactical HUD 1 Map Filters NONE Filters NONE Steam 1 RUN: 919b02da-143b-4e18-a5aa-fe00d3605104